bitfinex-derivatives/quotes_SOLF0:USTF0_20241015
["timestamp","ask_amount","ask_price","bid_price","bid_amount"]
[1728996183848,3.18398481,153.92,153.88,3.25]
[1728996183849,6.43328481,153.92,153.88,3.25]
[1728996184059,5.5,153.93,153.85,15.61]
[1728996184260,15.61,153.95,153.86,2.7129]
[1728996184461,6.4933536,153.94,153.87,15.61]
[1728996184650,5.5,153.94,153.87,16.9317]
[1728996185054,8.7489,153.94,153.89,3.2498]
[1728996185258,5.5,153.94,153.87,16.9317]
[1728996185853,3.2491,153.93,153.88,3.2499]
[1728996186358,3.2491,153.93,153.87,16.9317]
[1728996186563,3.2491,153.93,153.89,3.2497]
[1728996187059,15.61,153.93,153.86,2.7129]
[1728996187261,15.61,153.89,153.82,5.5]
[1728996187466,15.61,153.89,153.8,2.7456]
[1728996187467,15.61,153.87,153.8,2.7456]
[1728996187863,3.2505,153.86,153.82,3.2513]
[1728996188166,18.90228297,153.87,153.8,2.7456]
[1728996189465,3.2505,153.86,153.82,3.2513]
[1728996189667,18.90228297,153.87,153.8,2.7456]
[1728996190367,3.2507,153.85,153.81,3.2514]
[1728996190666,18.90228297,153.87,153.8,2.7456]
[1728996190871,3.2506,153.86,153.82,3.2513]
[1728996191065,18.90228297,153.87,153.8,2.7456]
[1728996191261,5.5,153.86,153.8,2.7456]
[1728996191567,3.2508,153.85,153.81,3.2514]
[1728996192262,8.7506,153.86,153.81,3.2514]
[1728996192769,8.7506,153.86,153.82,3.2513]
[1728996195463,8.7506,153.86,153.8,2.7456]
[1728996196167,5.5,153.86,153.8,2.7456]
[1728996196371,5.5,153.86,153.75,1.4198]
[1728996196372,15.61,153.85,153.75,17.0298]
[1728996196569,3.2512,153.83,153.76,5.42]
[1728996196967,15.61,153.85,153.76,5.42]
[1728996197165,3.2515,153.82,153.78,3.252]
[1728996197570,5.42,153.82,153.75,4.0565]
[1728996197771,3.2518,153.8,153.77,3.2524]
[1728996197969,5.42,153.82,153.77,3.2524]
[1728996198364,3.2516,153.81,153.77,3.2524]
[1728996198770,3.2516,153.81,153.75,4.0565]
[1728996198771,5.42,153.82,153.75,4.0565]
[1728996200075,8.6713,153.82,153.78,3.2521]
[1728996201277,5.42,153.82,153.78,3.2521]
[1728996202267,5.42,153.82,153.79,3.2518]
[1728996203472,5.42,153.82,153.75,4.0565]
[1728996203678,15.61,153.81,153.75,4.0565]
[1728996204474,15.61,153.81,153.75,2.6367]
[1728996204777,3.2519,153.8,153.76,3.2525]
[1728996205678,18.8615,153.81,153.78,3.2522]
[1728996206072,15.61,153.81,153.75,2.6367]
[1728996206375,5.42,153.83,153.75,18.2467]
[1728996206778,5.42,153.83,153.79,3.2517]
[1728996207271,3.29853627,153.82,153.79,3.2517]
[1728996208076,3.29853627,153.82,153.8,3.2517]
[1728996208779,21.03,153.83,153.75,2.6367]
[1728996209178,24.30738346,153.83,153.75,2.6367]
[1728996209479,27.55858346,153.83,153.79,3.2519]
[1728996209778,24.30738346,153.83,153.75,2.6367]
[1728996209976,3.27738346,153.83,153.77,15.61]
[1728996210280,5.42,153.84,153.81,3.2513]
[1728996210480,5.42,153.84,153.77,15.61]
[1728996210677,3.30190113,153.85,153.77,15.61]
[1728996210883,5.42,153.85,153.77,15.61]
[1728996211072,8.6024769,153.85,153.82,3.2513]
[1728996212984,5.42,153.85,153.79,3.2519]
[1728996213284,5.42,153.85,153.77,15.61]
[1728996213480,8.7445743,153.86,153.77,15.61]
[1728996213683,8.7445743,153.86,153.83,3.2509]
[1728996215487,8.7445743,153.86,153.77,15.61]
[1728996215488,15.61,153.87,153.77,15.61]
[1728996215685,3.21917684,153.88,153.81,15.61]
[1728996215879,5.42,153.88,153.81,15.61]
[1728996216084,3.33368285,153.87,153.81,15.61]
[1728996216488,5.42,153.88,153.81,15.61]
[1728996216689,91.72256619,153.91,153.81,15.61]
[1728996216883,5.42,153.9,153.83,15.61]
[1728996217390,5.42,153.92,153.85,15.61]
[1728996217688,70.24,153.95,153.85,15.61]
[1728996217994,15.61,153.96,153.92,3.2491]
[1728996217995,5.42,153.94,153.92,3.2491]
[1728996219197,5.42,153.94,153.91,3.2493]
[1728996219492,5.42,153.94,153.84,21.03]
[1728996219694,15.61,153.91,153.85,1.3782]
[1728996219885,15.61,153.91,153.86,3.2503]
[1728996220084,5.42,153.9,153.86,3.2503]
[1728996220393,3.2312733,153.89,153.86,3.2503]
[1728996220687,3.2312733,153.89,153.87,3.2501]
[1728996220988,3.28186853,153.97,153.86,15.61]
[1728996221194,6.41331876,153.96,153.92,3.2491]
[1728996221386,8.6685,153.96,153.92,3.2491]
[1728996221580,5.42,153.96,153.88,16.9574]
[1728996222182,8.6684,153.96,153.88,16.9574]
[1728996222393,5.42,153.96,153.93,3.2489]
[1728996222783,8.6684,153.96,153.93,3.2489]
[1728996222989,24.2784,153.96,153.93,3.2489]
[1728996223292,24.2784,153.96,153.92,3.2491]
[1728996223892,5.42,153.96,153.93,3.2489]
[1728996224794,5.42,153.96,153.88,18.2873]
[1728996224996,8.6685,153.96,153.92,3.2491]
[1728996225199,5.42,153.96,153.88,18.2873]
[1728996225594,5.42,153.96,153.93,3.2489]
[1728996225791,11.93208435,153.97,153.93,3.2489]
[1728996226589,0.99315743,153.96,153.93,3.2489]
[1728996227601,15.61,153.94,153.88,1.3474]
[1728996227899,5.42,153.93,153.88,1.3474]
[1728996228705,5.42,153.93,153.91,3.2493]
[1728996230700,5.42,153.93,153.88,1.3474]
[1728996230904,8.6691,153.93,153.88,1.3474]
[1728996231207,8.6691,153.93,153.88,16.9574]
[1728996231208,5.42,153.93,153.88,16.9574]
[1728996231396,5.42,153.93,153.91,3.2493]
[1728996231798,3.2487,153.95,153.91,3.2493]
[1728996233100,3.2488,153.94,153.91,3.2493]
[1728996233906,3.2487,153.95,153.91,3.2493]
[1728996234699,0.9931998,153.94,153.91,3.2493]
[1728996234901,4.2419998,153.94,153.91,3.2493]
[1728996235109,3.2488,153.94,153.91,3.2493]
[1728996237307,3.2487,153.95,153.91,3.2493]
[1728996237802,21.03,153.96,153.91,3.2493]
[1728996237999,3.2488,153.94,153.91,3.2493]
[1728996239008,3.2492,153.92,153.89,3.2497]
[1728996239208,15.61,153.92,153.87,1.405]
[1728996239413,21.03,153.92,153.87,1.405]
[1728996240317,3.2499,153.89,153.85,3.2505]
[1728996240509,3.25208037,153.88,153.84,1.3176]
[1728996240703,15.61,153.88,153.84,1.3176]
[1728996240908,21.03,153.92,153.84,1.3176]
[1728996241310,0.99343869,153.91,153.84,1.3176]
[1728996241513,15.61,153.9,153.84,1.3176]
[1728996242011,3.2502,153.88,153.84,1.3176]
[1728996242311,3.21151414,153.87,153.84,1.3176]
[1728996243413,5.42,153.88,153.84,1.3176]
[1728996243613,5.42,153.88,153.84,4.5685]
[1728996244323,8.6702,153.88,153.84,4.5685]
[1728996244516,3.28988341,153.87,153.84,4.5685]
[1728996244910,5.42,153.88,153.85,3.2507]
[1728996245110,15.61,153.93,153.84,1.3176]
[1728996245412,6.41357484,153.92,153.85,15.61]
[1728996245605,5.42,153.92,153.85,15.61]
[1728996245810,8.6694,153.92,153.85,15.61]
[1728996246013,5.42,153.92,153.84,1.3176]
[1728996246215,3.2501,153.88,153.84,4.5684]
[1728996246515,5.42,153.92,153.86,15.61]
[1728996247015,5.42,153.92,153.88,3.2499]
[1728996247412,5.42,153.92,153.86,15.61]
[1728996247613,8.6692,153.92,153.89,3.2498]
[1728996248615,5.42,153.92,153.89,3.2498]
[1728996248817,5.42,153.93,153.86,15.61]
[1728996249016,5.42,153.95,153.87,16.9913]
[1728996249221,5.42,153.95,153.88,1.3015]
[1728996249819,8.6687,153.95,153.9,3.2496]
[1728996250414,8.6687,153.95,153.91,3.2494]
[1728996251920,8.6685,153.96,153.92,3.2492]
[1728996252224,5.42,153.96,153.88,1.3015]
[1728996252619,8.6684,153.96,153.92,3.249]
[1728996253124,3.2491,153.93,153.89,3.2497]
[1728996253329,21.03,153.96,153.88,1.3015]
[1728996253525,5.42,153.96,153.88,16.9115]
[1728996254922,5.42,153.96,153.91,3.2494]
[1728996254923,3.2487,153.95,153.91,3.2494]
[1728996255325,5.42,153.96,153.88,16.9115]
[1728996256026,15.61,153.93,153.88,1.3015]
[1728996256223,5.42,153.96,153.84,1.3176]
[1728996256224,15.61,153.91,153.84,1.3176]
[1728996256430,21.03,153.91,153.84,1.3176]
[1728996256633,15.61,153.89,153.84,1.3176]
[1728996256931,22.08488924,153.89,153.84,4.5684]
[1728996257120,21.03,153.91,153.84,1.3176]
[1728996257317,5.42,153.92,153.84,16.9276]
[1728996257523,5.42,153.93,153.86,15.61]
[1728996257824,15.61,153.95,153.86,15.61]
[1728996258026,15.61,153.95,153.87,1.2897]
[1728996258027,0.99333332,153.94,153.87,1.2897]
[1728996258330,0.99333332,153.94,153.91,3.2493]
[1728996258530,3.22790691,153.94,153.91,3.2493]
[1728996258723,3.22790691,153.94,153.87,2.6692]
[1728996258925,3.22790691,153.94,153.92,3.2491]
[1728996260020,3.22790691,153.94,153.93,3.249]
[1728996260227,5.42,153.96,153.93,3.249]
[1728996260426,8.72171179,153.96,153.93,3.249]
[1728996260829,8.72171179,153.96,153.88,15.61]
[1728996261027,8.72171179,153.96,153.89,15.61]
[1728996261224,8.72171179,153.96,153.9,1.4248]
[1728996261733,21.03,153.97,153.93,3.2488]
[1728996262333,24.29791105,153.97,153.93,3.2488]
[1728996263438,3.2485,153.96,153.92,3.2491]
[1728996263933,27.54611105,153.97,153.93,3.2489]
[1728996264133,24.29791105,153.97,153.9,1.4248]
[1728996264830,24.29791105,153.97,153.94,3.2488]
[1728996266331,24.29791105,153.97,153.95,3.2485]
[1728996268435,24.29791105,153.97,153.9,1.4248]
[1728996268733,15.61,153.96,153.9,1.4248]
[1728996269130,3.2487,153.95,153.92,3.2491]
[1728996271035,15.61,153.96,153.9,1.4248]
[1728996271233,11.93611105,153.97,153.94,3.2486]
[1728996271434,6.51611105,153.97,153.9,1.4248]
[1728996271735,11.93611105,153.97,153.9,1.4248]
[1728996271930,11.93611105,153.97,153.94,3.2487]
[1728996272327,8.68791105,153.97,153.9,1.4248]
[1728996272528,11.93611105,153.97,153.93,3.2488]
[1728996272933,11.93611105,153.97,153.9,1.4248]
[1728996272934,6.51611105,153.97,153.9,1.4248]
[1728996273145,6.51611105,153.97,153.94,3.2487]
[1728996273337,3.26791105,153.97,153.9,1.4248]
[1728996273531,24.278,153.98,153.9,1.4248]
[1728996274038,27.51275575,153.98,153.94,3.2487]
[1728996274840,24.26475575,153.98,153.94,3.2487]
[1728996275040,3.2483,153.97,153.94,3.2487]
[1728996276240,15.61,153.95,153.9,1.4248]
[1728996276441,3.2489,153.94,153.91,3.2492]
[1728996276746,15.61,153.95,153.91,3.2492]
[1728996277329,24.26475575,153.98,153.9,1.4248]
[1728996277530,0.99312911,153.97,153.9,1.4248]
[1728996278238,24.26475575,153.98,153.9,1.4248]
[1728996278537,3.2482,153.97,153.94,3.2487]
[1728996279137,3.2485,153.96,153.9,1.4248]
[1728996279636,3.2485,153.96,153.91,3.2492]
[1728996279942,24.26475575,153.98,153.9,1.4248]
[1728996280146,3.2484,153.96,153.92,3.2491]
[1728996280843,15.61,153.95,153.9,4.6743]
[1728996281038,15.61,153.95,153.9,1.4248]
[1728996281636,3.2491,153.93,153.89,3.2497]
[1728996281941,21.03,153.94,153.87,2.6692]
[1728996282441,3.2494,153.92,153.88,3.2499]
[1728996282640,15.61,153.92,153.86,1.362]
[1728996282840,15.61,153.9,153.82,8.1407]
[1728996283047,21.03,153.9,153.82,8.1407]
[1728996283640,24.25857779,153.9,153.82,8.1407]
[1728996284048,27.50827779,153.9,153.86,3.2505]
[1728996285144,27.50827779,153.9,153.86,3.2504]
[1728996285339,24.25857779,153.9,153.82,8.1407]
[1728996285941,3.25,153.89,153.84,3.2508]
[1728996286140,15.61,153.88,153.82,8.1407]
[1728996286542,18.8606,153.86,153.82,3.2513]
[1728996286845,21.03,153.86,153.78,5.42]
[1728996287047,15.61,153.82,153.8,3.2517]
[1728996287645,15.61,153.82,153.77,1.4131]
[1728996288652,15.61,153.82,153.79,3.2517]
[1728996289445,15.61,153.82,153.8,3.2517]
[1728996293644,15.61,153.84,153.8,3.2517]
[1728996295655,15.61,153.82,153.79,3.2518]
[1728996295860,24.27172022,153.82,153.79,3.2518]
[1728996296059,15.61,153.8,153.73,1.3504]
[1728996296252,15.61,153.78,153.75,3.2526]
[1728996296961,18.8615,153.81,153.77,3.2523]
[1728996297149,5.42,153.8,153.77,3.2523]
[1728996297763,15.61,153.79,153.71,2.7303]
[1728996298465,15.61,153.79,153.73,3.2531]
[1728996298658,15.61,153.79,153.71,2.7303]
[1728996299561,15.61,153.79,153.76,3.2526]
[1728996300763,8.6719,153.8,153.71,2.7303]
[1728996300963,5.42,153.81,153.72,15.61]
[1728996301662,3.21599765,153.8,153.72,15.61]
[1728996302966,3.21599765,153.8,153.77,3.2522]
[1728996303463,5.42,153.81,153.77,3.2522]
[1728996303664,5.42,153.81,153.71,2.7303]
[1728996303665,15.61,153.78,153.71,2.7303]
[1728996303969,15.61,153.76,153.71,2.7303]
[1728996304262,15.61,153.76,153.71,1.3897]
[1728996304467,15.61,153.76,153.7,1.346]
[1728996304652,18.8627,153.76,153.72,3.2533]
[1728996305259,5.42,153.77,153.73,3.2532]
[1728996305463,8.6724,153.77,153.73,3.2532]
[1728996307673,5.42,153.77,153.74,3.253]
[1728996310580,15.61,153.78,153.7,16.956]
[1728996311173,21.03,153.8,153.74,3.2529]
[1728996311469,21.03,153.8,153.72,15.61]
[1728996311775,21.03,153.8,153.78,3.2521]
[1728996312273,8.60487294,153.81,153.74,15.61]
[1728996312575,5.42,153.81,153.8,3.2517]
[1728996312872,5.42,153.81,153.74,15.61]
[1728996313062,15.61,153.8,153.73,2.6779]
[1728996313263,15.61,153.78,153.73,2.6779]
[1728996313779,15.61,153.78,153.75,3.2527]
[1728996313973,15.61,153.78,153.7,1.346]
[1728996314272,5.42,153.77,153.7,1.346]
[1728996314479,15.61,153.73,153.7,1.346]
[1728996314671,3.22522366,153.74,153.72,3.2533]
[1728996314869,15.61,153.75,153.72,3.2533]
[1728996315280,15.61,153.75,153.73,3.2531]
[1728996315281,18.79162637,153.75,153.73,3.2531]
[1728996316081,18.79162637,153.75,153.7,1.346]
[1728996316880,18.79162637,153.75,153.72,3.2533]
[1728996317084,15.61,153.75,153.7,1.346]
[1728996317475,18.83139125,153.75,153.7,1.346]
[1728996318179,18.83139125,153.75,153.72,3.2532]
[1728996318371,15.61,153.75,153.7,1.346]
[1728996318579,5.42,153.76,153.7,1.346]
[1728996318780,8.6283729,153.76,153.7,1.346]
[1728996318980,6.5009,153.87,153.72,15.61]
[1728996319182,15.61,153.82,153.72,15.61]
[1728996319377,5.42,153.81,153.72,15.61]
[1728996319577,8.6717,153.81,153.72,15.61]
[1728996320478,8.6717,153.81,153.76,3.2524]
[1728996320679,5.42,153.81,153.76,3.2524]
[1728996320879,3.2518,153.8,153.76,3.2524]
[1728996321280,5.42,153.81,153.76,3.2524]
[1728996321480,8.6717,153.81,153.76,3.2524]
[1728996321885,18.8621,153.79,153.75,3.2526]
[1728996322184,15.61,153.77,153.7,1.346]
[1728996322388,15.61,153.77,153.72,3.2534]
[1728996322683,15.61,153.77,153.7,1.346]
[1728996322883,21.03,153.77,153.74,3.253]
[1728996323684,3.23356785,153.82,153.72,15.61]
[1728996323990,5.42,153.86,153.78,15.61]
[1728996324178,15.61,153.87,153.78,15.61]
[1728996324380,3.251,153.84,153.79,3.2518]
[1728996325083,3.30395809,153.84,153.75,15.61]
[1728996325279,18.8612,153.83,153.78,3.252]
[1728996325586,18.83194495,153.83,153.78,3.252]
[1728996325785,15.61,153.81,153.74,1.3735]
[1728996325975,5.42,153.8,153.74,1.3735]
[1728996326180,8.63557923,153.8,153.74,1.3735]
[1728996326883,11.88737923,153.8,153.76,3.2525]
[1728996328584,8.63557923,153.8,153.74,1.3735]
[1728996328785,3.2521,153.79,153.75,3.2527]
[1728996329484,8.63557923,153.8,153.7,8.1067]
[1728996330690,3.2521,153.79,153.75,3.2527]
[1728996331288,3.252,153.79,153.75,3.2528]
[1728996331489,8.63557923,153.8,153.7,8.1067]
[1728996331994,3.2521,153.79,153.74,3.2528]
[1728996332786,3.2523,153.78,153.74,3.2528]
[1728996334397,8.63557923,153.8,153.72,25.0]
[1728996334703,5.42,153.79,153.72,25.0]
[1728996334900,5.42,153.79,153.77,3.2523]
[1728996335994,3.17772213,153.78,153.77,3.2523]
[1728996337709,3.17772213,153.78,153.76,3.2524]
[1728996340708,3.17772213,153.78,153.71,25.0]
[1728996340908,3.17772213,153.78,153.77,3.2524]
[1728996341411,3.17772213,153.78,153.76,3.2525]
[1728996343209,5.42,153.8,153.76,3.2525]
[1728996343410,8.64131611,153.8,153.76,3.2525]
[1728996345312,8.64131611,153.8,153.73,3.2531]
[1728996345618,8.64131611,153.8,153.71,25.0]
[1728996346517,8.64131611,153.8,153.76,3.2524]
[1728996347713,3.2521,153.79,153.75,3.2527]
[1728996348012,33.64131611,153.8,153.7,2.6867]
[1728996348213,3.254,153.7,153.65,3.2548]
[1728996348515,11.97248759,153.7,153.59,27.7065]
[1728996348718,5.4,153.7,153.59,27.7065]
[1728996349019,30.4,153.7,153.59,27.7065]
[1728996349219,33.66443844,153.7,153.59,27.7065]
[1728996349716,3.2542,153.69,153.64,3.255]
[1728996349920,18.8842,153.69,153.64,3.255]
[1728996350410,15.63,153.69,153.61,1.3757]
[1728996350615,15.95708807,153.78,153.68,15.63]
[1728996350810,15.95708807,153.78,153.62,8.68625346]
[1728996350811,4.24365475,153.77,153.72,15.63]
[1728996351013,5.4,153.79,153.72,15.63]
[1728996351817,5.4,153.79,153.7,27.6869]
[1728996352418,8.652,153.79,153.74,3.253]
[1728996353415,3.2524,153.77,153.72,3.2534]
[1728996353622,3.2533018,153.76,153.72,3.2534]
[1728996353917,5.4,153.75,153.7,1.378]
[1728996354218,30.4,153.75,153.69,1.3757]
[1728996354522,30.4,153.75,153.66,6.7293]
[1728996354523,5.4,153.75,153.66,2.7525]
[1728996354720,28.2534,153.73,153.68,3.2541]
[1728996355217,25.0,153.71,153.66,1.4232]
[1728996355523,33.6537,153.71,153.66,1.4232]
[1728996356420,33.6537,153.71,153.67,3.2545]
[1728996358017,3.254,153.7,153.65,3.2549]
[1728996358221,30.4,153.71,153.65,3.2549]
[1728996358814,28.2542,153.69,153.64,4.5955]
[1728996359016,31.55054301,153.69,153.64,4.5955]
[1728996359714,31.55054301,153.69,153.66,3.2547]
[1728996359715,28.29634301,153.69,153.66,3.2547]
[1728996359918,3.29634301,153.69,153.66,3.2547]
[1728996360115,33.6538,153.71,153.66,3.2547]
[1728996360311,3.2539,153.7,153.66,3.2547]
[1728996360516,30.4,153.71,153.66,3.2547]
[1728996360818,30.4,153.71,153.64,1.3404]
[1728996361016,30.4,153.71,153.69,3.2541]
[1728996361215,30.4,153.71,153.64,1.3404]
[1728996361817,3.2539,153.7,153.64,1.3404]
[1728996362212,25.0,153.67,153.62,1.3951]
[1728996362516,33.68462548,153.67,153.62,1.3951]
[1728996363320,25.0,153.65,153.6,1.2924]
[1728996363517,25.0,153.65,153.56,2.7007]
[1728996364116,3.2553,153.64,153.56,2.7007]
[1728996364327,5.4,153.63,153.56,2.7007]
[1728996364720,25.0,153.62,153.58,3.2564]
[1728996365128,25.0,153.62,153.56,2.7007]
[1728996365418,5.42,153.63,153.56,2.7007]
[1728996366023,5.42,153.63,153.61,3.2557]
[1728996366216,8.69602305,153.63,153.61,3.2557]
[1728996366615,8.69602305,153.63,153.56,2.7007]
[1728996366813,15.96412094,153.73,153.56,2.7007]
[1728996367014,25.0,153.69,153.57,25.0]
[1728996367217,3.24866314,153.69,153.68,3.2543]
[1728996367426,5.42,153.7,153.62,5.42]
[1728996367718,5.42,153.7,153.63,2.767]
[1728996368021,5.42,153.7,153.67,3.2544]
[1728996369518,5.42,153.7,153.63,2.767]
[1728996370424,5.42,153.7,153.67,3.2545]
[1728996370724,5.42,153.71,153.67,3.2545]
[1728996370924,70.3,153.76,153.72,3.2533]
[1728996371128,5.42,153.76,153.66,5.42]
[1728996371331,5.42,153.76,153.67,1.299]
[1728996371519,3.19049424,153.77,153.74,3.2529]
[1728996371724,5.42,153.78,153.74,3.2529]
[1728996372132,8.7431574,153.78,153.74,3.2529]
[1728996372821,8.7431574,153.78,153.68,5.42]
[1728996373223,8.7431574,153.78,153.74,3.2529]
[1728996375131,8.7431574,153.78,153.73,3.2532]
[1728996375529,8.7431574,153.78,153.68,5.42]
[1728996376828,8.7431574,153.78,153.75,3.2527]
[1728996377726,8.7431574,153.78,153.75,3.2528]
[1728996378333,25.0,153.79,153.76,3.2524]
[1728996378529,25.0,153.79,153.68,5.42]
[1728996378530,30.4,153.79,153.69,26.3801]
[1728996378928,30.4,153.79,153.7,1.4147]
[1728996380034,30.4,153.79,153.76,3.2526]
[1728996380832,30.4,153.79,153.7,1.4147]
[1728996380833,3.19939804,153.78,153.7,1.4147]
[1728996381033,25.0,153.77,153.7,1.4147]
[1728996381232,3.31817147,153.76,153.7,1.4147]
[1728996381736,3.31817147,153.76,153.73,3.2532]
[1728996382830,25.0,153.77,153.72,3.2533]
[1728996383233,28.28595621,153.77,153.72,3.2533]
[1728996383432,31.53845621,153.77,153.72,3.2533]
[1728996383629,31.53845621,153.77,153.71,3.2535]
[1728996383630,28.28595621,153.77,153.71,3.2535]
[1728996384045,3.2526,153.76,153.71,3.2535]
[1728996384338,28.28595621,153.77,153.72,3.2533]
[1728996384838,31.53845621,153.77,153.72,3.2533]
[1728996387933,25.0,153.75,153.72,3.2533]
[1728996388134,25.0,153.73,153.7,3.2537]
[1728996388331,25.0,153.73,153.67,1.299]
[1728996388539,28.26446482,153.73,153.67,1.299]
[1728996388744,28.26446482,153.73,153.69,3.2539]
[1728996389133,28.26446482,153.73,153.67,1.299]
[1728996389541,28.26446482,153.73,153.7,3.2537]
[1728996391643,25.0,153.75,153.71,3.2535]
[1728996391940,33.5972806,153.75,153.67,1.299]
[1728996392135,33.5972806,153.75,153.72,3.2533]
[1728996396144,28.27790894,153.77,153.68,5.4]
[1728996396342,79.42824212,153.86,153.68,5.4]
[1728996396343,25.0,153.8,153.69,26.2994]
[1728996396546,25.0,153.82,153.71,25.0]
[1728996396740,5.4,153.83,153.72,5.4]
[1728996396941,8.6512,153.83,153.72,5.4]
[1728996397146,8.6512,153.83,153.73,1.3818]
[1728996397446,0.99422566,153.82,153.78,3.252]
[1728996397634,8.6512,153.83,153.78,3.252]
[1728996397835,5.4,153.83,153.78,3.252]
[1728996398035,28.2513,153.82,153.78,3.252]
[1728996399447,25.0,153.82,153.78,3.252]
[1728996399646,5.4,153.83,153.73,1.3818]
[1728996400043,25.0,153.85,153.73,1.3818]
[1728996400044,28.2507,153.85,153.73,1.3818]
[1728996400244,5.4,153.84,153.73,1.3818]
[1728996400448,5.4,153.84,153.8,3.2516]
[1728996403846,5.4,153.84,153.81,3.2514]
[1728996407052,8.651,153.84,153.8,3.2516]
[1728996407248,8.651,153.84,153.77,1.3714]
[1728996407249,5.4,153.84,153.77,1.3714]
[1728996407445,5.4,153.84,153.77,2.6672]
[1728996407648,5.4,153.84,153.81,3.2514]
[1728996407850,21.02,153.84,153.81,3.2514]
[1728996410358,15.62,153.84,153.81,3.2514]
[1728996412049,21.02,153.85,153.82,3.2512]
[1728996412255,15.62,153.87,153.78,15.62]
[1728996412455,3.33183168,153.86,153.78,15.62]
[1728996412651,15.62,153.87,153.83,3.251]
[1728996412958,15.62,153.87,153.79,1.4145]
[1728996413158,15.62,153.87,153.8,5.4]
[1728996413458,15.62,153.87,153.85,3.2507]
[1728996416350,15.62,153.87,153.8,5.4]
[1728996416554,15.62,153.86,153.8,5.4]
[1728996417459,15.62,153.86,153.83,3.2509]
[1728996417653,15.62,153.84,153.79,1.4145]
[1728996418060,3.33162337,153.87,153.79,1.4145]
[1728996418260,15.62,153.84,153.79,1.4145]
[1728996418763,15.62,153.84,153.81,3.2514]
[1728996419761,15.62,153.84,153.82,3.2513]
[1728996420563,15.62,153.84,153.81,3.2514]
[1728996421653,21.02,153.85,153.83,3.251]
[1728996421859,21.02,153.88,153.8,15.62]
[1728996422263,15.62,153.89,153.82,15.62]
[1728996422461,15.62,153.96,153.84,15.62]
[1728996422462,5.4,153.91,153.84,15.62]
[1728996422657,15.62,153.93,153.85,1.4015]
[1728996422858,15.62,153.93,153.91,3.2493]
[1728996424162,21.02,153.96,153.86,15.62]
[1728996424367,3.30190894,154.02,153.9,15.62]
[1728996424663,15.62,154.0,153.91,8.1641]
[1728996425067,15.62,154.0,153.92,1.4015]
[1728996425865,30.36,154.02,153.92,1.4015]
[1728996426061,30.36,154.02,153.99,3.2476]
[1728996426267,30.36,154.02,153.92,1.4015]
[1728996427671,5.4,154.03,153.92,26.3615]
[1728996427968,3.18280226,154.03,153.92,26.3615]
[1728996428164,5.4,154.04,153.92,26.3615]
[1728996428565,5.4,154.04,153.99,3.2477]
[1728996428766,3.27866001,154.03,153.99,3.2477]
[1728996429171,5.4,154.04,153.99,3.2477]
[1728996429360,3.29816355,154.03,153.99,3.2477]
[1728996430274,3.29816355,154.03,153.95,5.4]
[1728996430572,3.29816355,154.03,154.0,3.2475]
[1728996431371,5.4,154.04,153.95,5.4]